bitfinex/quotes_ETHUSD_20240926
["timestamp","ask_amount","ask_price","bid_price","bid_amount"]
[1727326648086,6.15679,2598.8,2598.4,0.10627209]
[1727326649012,3.07847,2598.7,2598.4,0.10627209]
[1727326650218,4.74551792,2599.2,2598.4,0.10627209]
[1727326650219,0.8144,2599.3,2598.9,0.3234]
[1727326650421,3.07799,2599.1,2598.9,0.3234]
[1727326650587,6.15589,2599.2,2599.0,0.10639028]
[1727326650808,3.07798,2599.1,2599.0,0.10639028]
[1727326651508,3.07793,2599.2,2599.0,0.10639028]
[1727326655223,3.07751,2599.5,2599.2,0.3234]
[1727326655514,3.07746,2599.6,2599.2,0.3234]
[1727326655725,3.07746,2599.6,2599.3,0.10600206]
[1727326657930,6.15492,2599.6,2599.2,0.3234]
[1727326658125,3.07746,2599.6,2599.3,0.10600206]
[1727326664141,3.07729,2599.7,2599.3,0.10600206]
[1727326665013,3.07721,2599.8,2599.3,0.10600206]
[1727326665208,6.15445,2599.8,2599.3,0.10600206]
[1727326665420,3.07731,2599.7,2599.3,0.10600206]
[1727326666033,3.07721,2599.8,2599.3,0.10600206]
[1727326666256,6.15445,2599.8,2599.3,0.10600206]
[1727326667041,3.07731,2599.7,2599.3,0.10600206]
[1727326667226,3.07731,2599.7,2599.4,0.3234]
[1727326667718,3.07731,2599.7,2599.5,0.10490507]
[1727326668439,6.15448,2599.8,2599.5,0.10490507]
[1727326668933,3.07727,2599.7,2599.5,0.10490507]
[1727326678177,3.07721,2599.8,2599.5,0.10490507]
[1727326678842,6.15443,2599.8,2599.5,0.10490507]
[1727326679244,3.07729,2599.7,2599.5,0.10490507]
[1727326679862,16.2545,2600.1,2599.5,4.84998299]
[1727326680170,16.2545,2600.1,2600.0,0.3234]
[1727326680171,15.5,2600.1,2600.0,0.3234]
[1727326680671,15.5,2600.1,2600.0,0.42453144]
[1727326684265,15.5,2600.1,2600.0,0.10113144]
[1727326684767,15.5,2600.1,2600.0,0.10102197]
[1727326685072,15.5,2600.1,2599.8,0.3234]
[1727326685364,15.5,2600.1,2600.0,0.10102197]
[1727326685568,15.5,2600.1,2599.8,0.3234]
[1727326685772,15.5,2600.1,2600.0,0.10102197]
[1727326685929,15.5,2600.1,2599.9,0.10102197]
[1727326689169,15.5,2600.1,2599.9,3.17804197]
[1727326690339,15.5,2600.1,2599.9,6.25501197]
[1727326690974,15.5,2600.1,2600.0,3.07692]
[1727326691133,15.5,2600.1,2599.9,3.17799197]
[1727326691339,15.5,2600.1,2600.0,0.10055894]
[1727326698098,15.5,2600.1,2600.0,3.17747894]
[1727326698598,15.5,2600.1,2600.0,0.10055894]
[1727326707410,15.5,2600.1,2600.0,3.17747894]
[1727326713928,15.5,2600.1,2600.0,3.50087894]
[1727326714689,15.5,2600.1,2600.0,3.52652909]
[1727326714830,15.5,2600.1,2600.0,8.02374145]
[1727326715034,15.5,2600.1,2600.0,9.41896316]
[1727326715331,14.69700848,2600.1,2600.0,9.41896316]
[1727326716040,14.69700848,2600.1,2600.0,11.17110088]
[1727326716223,14.69700848,2600.1,2600.0,10.22388852]
[1727326716727,14.69700848,2600.1,2600.0,11.67463025]
[1727326717102,14.69700848,2600.1,2600.0,10.86298984]
[1727326717509,14.69700848,2600.1,2600.0,11.66878789]
[1727326718439,13.26952126,2600.1,2600.0,13.96073377]
[1727326718611,12.81257437,2600.1,2600.0,13.96073377]
[1727326718811,12.81257437,2600.1,2600.0,14.36558017]
[1727326719207,12.81257437,2600.1,2600.0,34.04558017]
[1727326719680,12.81257437,2600.1,2600.0,32.59517727]
[1727326720030,12.81257437,2600.1,2600.0,34.0455369]
[1727326720347,12.81257437,2600.1,2600.0,35.09026648]
[1727326720551,12.81257437,2600.1,2600.0,31.52018551]
[1727326720844,12.81257437,2600.1,2600.0,33.86598546]
[1727326721047,12.81257437,2600.1,2600.0,33.8658898]
[1727326721436,12.81257437,2600.1,2600.0,35.07393284]
[1727326722250,12.81257437,2600.1,2600.0,33.86604332]
[1727326722459,12.81257437,2600.1,2600.0,35.07400317]
[1727326723212,12.81257437,2600.1,2600.0,33.86604332]
[1727326723413,12.81257437,2600.1,2600.0,35.07399794]
[1727326723812,6.99666293,2600.1,2600.0,33.86604332]
[1727326724033,6.99666293,2600.1,2600.0,35.47656125]
[1727326724447,6.99666293,2600.1,2600.0,33.86604332]
[1727326725151,6.99666293,2600.1,2600.0,32.41568369]
[1727326725724,6.99666293,2600.1,2600.0,33.62361989]
[1727326725943,6.99666293,2600.1,2600.0,33.62304603]
[1727326726146,6.99666293,2600.1,2600.0,34.02562762]
[1727326726351,6.99666293,2600.1,2600.0,32.17320048]
[1727326726559,6.99666293,2600.1,2600.0,33.62259277]
[1727326726960,0.0375072,2600.9,2600.8,6.62597]
[1727326727191,0.0375072,2600.9,2600.8,7.74359792]
[1727326727367,0.0375072,2600.9,2600.8,7.83852331]
[1727326728030,0.0375072,2600.9,2600.8,8.16192331]
[1727326737670,0.0375072,2600.9,2600.8,28.39192331]
[1727326737905,0.0375072,2600.9,2600.8,31.11762824]
[1727326738208,0.0375072,2600.9,2600.8,32.56530242]
[1727326738508,0.0375072,2601.7,2601.0,0.3234]
[1727326738705,0.0375072,2601.7,2601.6,4.74265792]
[1727326738906,0.0375072,2601.7,2601.6,4.76815569]
[1727326739274,0.0375072,2601.7,2601.6,4.85906109]
[1727326745358,0.0375072,2601.7,2601.6,3.19143317]
[1727326745559,0.0375072,2601.7,2601.6,0.0909054]
[1727326745560,0.8115072,2601.7,2601.6,0.0909054]
[1727326745758,0.8115072,2601.7,2601.6,3.1659354]
[1727326746456,0.0375072,2601.7,2601.6,3.1659354]
[1727326747355,0.0375072,2601.7,2601.6,4.83356332]
[1727326747543,0.0375072,2601.7,2601.6,4.85908184]
[1727326747751,0.0375072,2601.7,2601.6,3.1659354]
[1727326753912,0.0375072,2601.7,2601.6,0.0909054]
[1727326755197,0.0375072,2601.7,2601.6,3.1659354]
[1727326767875,0.8082072,2601.7,2601.6,3.1659354]
[1727326795612,0.8082072,2601.7,2601.6,0.0909054]
[1727326796707,0.8082072,2601.7,2601.6,3.1659354]
[1727326797439,0.8082072,2601.7,2601.6,3.2759354]
[1727326798613,0.8082072,2601.7,2601.6,0.2009054]
[1727326802229,0.8082072,2601.7,2601.6,3.2759354]
[1727326803299,0.8082072,2601.7,2601.6,0.2009054]
[1727326804323,0.90430258,2601.7,2601.6,0.2009054]
[1727326804485,1.19649692,2601.7,2601.6,0.2009054]
[1727326806244,0.8082072,2601.7,2601.6,0.2009054]
[1727326826162,3.8831172,2601.7,2601.6,0.2009054]
[1727326831698,5.55074512,2601.7,2601.6,0.2009054]
[1727326831863,5.64685953,2601.7,2601.6,0.11]
[1727326832059,7.35024013,2601.7,2601.6,0.11]
[1727326832262,7.75251469,2601.7,2601.6,0.11]
[1727326832599,10.46854673,2601.7,2601.6,0.11]
[1727326833364,7.65640028,2601.7,2601.6,0.11]
[1727326833563,7.75252243,2601.7,2601.6,0.11]
[1727326837479,7.65640028,2601.7,2601.6,0.11]
[1727326842771,7.10640028,2601.7,2601.6,0.11]
[1727326843106,7.20252049,2601.7,2601.6,0.11]
[1727326853940,7.75252049,2601.7,2601.6,0.11]
[1727326854100,7.65640028,2601.7,2601.6,0.11]
[1727326855741,10.65640028,2601.7,2601.6,0.11]
[1727326864939,8.98877236,2601.7,2601.6,0.11]
[1727326865161,9.33570028,2601.7,2601.6,0.11]
[1727326867118,9.33570028,2601.7,2601.6,0.19217728]
[1727326867319,8.18231968,2601.7,2601.6,0.19217728]
[1727326868736,8.18231968,2601.7,2601.6,0.11]
[1727326872061,8.18231968,2601.7,2601.6,0.19205154]
[1727326872234,8.18231968,2601.7,2601.6,0.11]
[1727326880141,11.78544066,2601.7,2601.6,0.11]
[1727326880336,13.27146473,2601.7,2601.6,0.11]
[1727326881031,13.82146473,2601.7,2601.6,0.11]
[1727326882563,11.00904375,2601.7,2601.6,0.11]
[1727326885189,3.07585,2600.9,2600.8,0.3234]
[1727326885350,3.07585,2600.9,2600.5,0.3234]
[1727326885351,3.07621,2600.6,2600.5,0.3234]
[1727326885558,3.07669,2600.2,2599.9,0.3234]
[1727326886050,4.84058179,2600.1,2600.0,0.07398126]
[1727326886265,4.74442792,2600.1,2600.0,0.07398126]
[1727326888055,1.66762792,2600.1,2600.0,0.07398126]
[1727326895291,1.7637865,2600.1,2600.0,0.07398126]
[1727326897297,4.74442792,2600.1,2600.0,0.07398126]
[1727326899798,1.66762792,2600.1,2600.0,0.07398126]
[1727326900464,1.76378653,2600.1,2600.0,0.07398126]
[1727326900805,1.66762792,2600.1,2600.0,0.07398126]
[1727326903993,4.84058664,2600.1,2600.0,0.07398126]
[1727326904187,4.74442792,2600.1,2600.0,0.07398126]
[1727326904393,5.53614958,2600.1,2600.0,0.07398126]
[1727326904908,5.53614958,2600.1,2599.6,0.3234]
[1727326904909,3.07716,2599.8,2599.6,0.3234]
[1727326905412,3.07716,2599.8,2599.7,0.07289813]
[1727326905993,3.17333177,2599.8,2599.7,0.07289813]
[1727326906176,3.96513274,2599.8,2599.7,0.07289813]
[1727326906390,3.07741,2599.6,2599.3,0.3234]
[1727326906597,4.74503792,2599.6,2599.3,0.3234]
[1727326907389,1.66762792,2599.4,2599.3,0.3234]
[1727326907591,3.07759,2599.5,2599.3,0.3234]
[1727326910170,1.66762792,2599.4,2599.3,0.3234]
[1727326910307,4.74525792,2599.4,2599.1,20.0034]
[1727326910721,3.07752,2599.5,2599.1,20.0034]
[1727326911504,3.07769,2599.4,2599.1,20.0034]
[1727326911885,3.07763,2599.4,2599.1,20.0034]
[1727326912617,3.07752,2599.5,2599.1,20.0034]
[1727326913317,3.07767,2599.4,2599.1,20.0034]
[1727326915199,3.07775,2599.3,2599.1,20.0034]
[1727326916021,1.66762792,2599.4,2599.2,0.07350909]
[1727326916296,3.07775,2599.3,2599.2,0.07350909]
[1727326916511,3.07759,2599.5,2599.2,0.07350909]
[1727326916711,3.17377963,2599.5,2599.2,0.07350909]
[1727326916920,3.07764,2599.4,2599.2,0.07350909]
[1727326918231,3.07775,2599.3,2599.2,0.07350909]
[1727326918436,3.07764,2599.4,2599.2,0.07350909]
[1727326919630,3.17371503,2599.5,2599.2,0.07350909]
[1727326919993,3.07769,2599.4,2599.2,0.07350909]
[1727326920295,3.88655,2599.3,2599.2,0.07350909]
[1727326920506,3.88655,2599.3,2599.0,19.68]
[1727326920707,3.88655,2599.3,2599.2,0.07375189]
[1727326921032,3.88655,2599.3,2599.2,0.07417046]
[1727326921342,3.88655,2599.3,2599.0,19.68]
[1727326921563,3.88655,2599.3,2599.2,0.07417046]
[1727326921710,3.88655,2599.3,2599.0,19.68]
[1727326922044,3.07775,2599.3,2599.1,19.68]
[1727326922239,1.66762792,2599.2,2599.1,19.75417046]
[1727326922417,3.07775,2599.3,2599.1,19.75417046]
[1727326923443,3.07778,2599.3,2599.1,19.75417046]
[1727326923651,3.07782,2599.3,2599.1,19.75417046]
[1727326923850,3.07787,2599.2,2599.1,19.75417046]
[1727326926551,4.74525792,2599.4,2599.1,19.75417046]
[1727326926847,3.07778,2599.3,2599.1,19.75417046]
[1727326927813,3.07778,2599.3,2599.1,0.07417046]
[1727326928009,3.07778,2599.3,2598.9,0.3234]
[1727326928354,3.07775,2599.3,2599.2,0.07427932]
[1727326928556,3.07775,2599.3,2598.9,0.3234]
[1727326928710,4.74525792,2599.4,2599.2,0.07427932]
[1727326928930,3.07776,2599.3,2598.9,0.3234]
[1727326929111,3.07763,2599.4,2598.9,0.3234]
[1727326929356,4.74525792,2599.4,2598.9,0.3234]
[1727326930649,3.07776,2599.3,2598.9,0.3234]
[1727326931151,3.07776,2599.3,2599.0,0.07436304]
[1727326931516,4.74525792,2599.4,2599.0,0.07436304]
[1727326931828,3.0778,2599.3,2599.0,0.07436304]
[1727326932419,4.74525792,2599.4,2599.0,0.07436304]
[1727326933916,7.82299792,2599.4,2599.0,0.07436304]
[1727326934117,4.74525792,2599.4,2599.0,0.07436304]
[1727326934658,7.82297792,2599.4,2599.0,0.07436304]
[1727326934861,4.74525792,2599.4,2599.0,0.07436304]
[1727326935023,7.82296792,2599.4,2599.0,0.07436304]
[1727326935222,4.74525792,2599.4,2599.0,0.07436304]
[1727326935527,7.82295792,2599.4,2599.0,0.07436304]
[1727326936861,3.07777,2599.3,2599.0,0.07436304]
[1727326939330,3.07788,2599.2,2599.0,0.07436304]
[1727326943993,7.82346792,2599.2,2599.0,0.07436304]
[1727326944836,3.07798,2599.1,2599.0,0.07436304]
[1727326947175,3.78119808,2599.1,2599.0,0.07436304]
[1727326947561,3.07825,2598.9,2598.6,0.3609072]
[1727326947756,4.74587792,2598.9,2598.6,0.3609072]
[1727326949060,3.07836,2598.8,2598.6,0.3609072]
[1727326949765,4.74592792,2598.9,2598.6,0.3609072]
[1727326950388,3.07834,2598.8,2598.6,0.3609072]
[1727326953195,4.74586792,2598.9,2598.6,0.3609072]
[1727326953402,1.66762792,2598.9,2598.6,0.3609072]
[1727326953576,3.0782,2599.0,2598.6,0.3609072]
[1727326953776,3.17440583,2599.0,2598.6,0.3609072]
[1727326953991,3.07825,2598.9,2598.6,0.3609072]
[1727326954193,3.17440583,2599.0,2598.6,0.3609072]
[1727326954771,3.07825,2598.9,2598.6,0.3609072]
[1727326957711,3.07834,2598.8,2598.6,0.3609072]
[1727326957906,3.07846,2598.7,2598.6,0.0375072]
[1727326958065,4.74608792,2598.7,2598.6,0.0375072]
[1727326958262,4.84230562,2598.7,2598.6,0.0375072]
[1727326960512,5.65840562,2598.7,2598.6,0.0375072]
[1727326960833,6.61128542,2598.7,2598.6,0.0375072]
[1727326961038,7.01372733,2598.7,2598.6,0.0375072]
[1727326965807,7.01372733,2598.7,2598.6,0.10931139]
[1727326966018,7.01372733,2598.7,2598.6,0.0375072]
[1727326966235,7.01372733,2598.7,2598.6,0.10931139]
[1727326972505,5.79518542,2598.7,2598.6,0.10931139]
[1727326972731,3.07835,2598.8,2598.6,0.10931139]
[1727326972942,4.74580792,2599.0,2598.6,0.10931139]
[1727326973190,3.07818,2599.0,2598.6,0.10931139]
[1727326974838,6.15639,2599.0,2598.6,0.10931139]
[1727326975037,6.25259561,2599.0,2598.6,0.10931139]
[1727326976143,3.17438561,2599.0,2598.6,0.10931139]
[1727326976315,3.07825,2598.9,2598.6,0.10931139]
[1727326978051,3.17438561,2599.0,2598.6,0.10931139]
[1727326978254,6.25257561,2599.0,2598.6,0.10931139]
[1727326978749,3.07827,2598.9,2598.6,0.10931139]
[1727326980711,3.07834,2598.8,2598.6,0.10931139]
[1727326981437,3.07815,2599.0,2598.6,0.10931139]
[1727326981614,3.07824,2598.9,2598.6,0.10931139]
[1727326981805,3.07815,2599.0,2598.6,0.10931139]
[1727326982209,6.15632,2599.0,2598.6,0.10931139]
[1727326982607,3.07815,2599.0,2598.6,0.10931139]
[1727326983649,6.15633,2599.0,2598.6,0.10931139]
[1727326983823,3.07815,2599.0,2598.6,0.10931139]
[1727326984031,3.07823,2598.9,2598.6,0.10931139]
[1727326984230,3.07815,2599.0,2598.6,0.10931139]
[1727326984448,6.15634,2599.0,2598.6,0.10931139]
[1727326984659,3.07815,2599.0,2598.6,0.10931139]
[1727326984865,6.15634,2599.0,2598.6,0.10931139]
[1727326985022,3.07828,2598.9,2598.6,0.10931139]
[1727326985743,3.07835,2598.8,2598.6,0.10931139]
[1727326986656,3.07815,2599.0,2598.6,0.10931139]
[1727326986657,3.07823,2598.9,2598.6,0.10931139]
[1727326986855,3.07815,2599.0,2598.6,0.10931139]
[1727326986856,3.07836,2598.8,2598.6,0.10931139]
[1727326987532,3.07825,2598.9,2598.6,0.10931139]
[1727326987744,3.07836,2598.8,2598.6,0.10931139]
[1727326993962,3.07823,2598.9,2598.6,0.10931139]
[1727326996583,3.07815,2599.0,2598.6,0.10931139]
[1727326996883,3.07822,2598.9,2598.6,0.10931139]
[1727326997071,3.07815,2599.0,2598.6,0.10931139]
[1727326998465,3.07815,2599.0,2598.7,0.3234]
[1727326998784,3.07822,2598.9,2598.8,0.0692967]
[1727326999148,3.07822,2598.9,2598.7,0.3234]
[1727326999149,3.55272779,2599.0,2598.7,0.3234]
[1727326999356,3.07794,2599.2,2598.8,0.0692967]
[1727326999556,4.74556792,2599.2,2598.7,0.3234]
[1727326999748,0.8248,2599.5,2599.0,0.3234]
[1727327000074,3.07722,2599.8,2599.4,0.3234]
[1727327000254,6.15445,2599.8,2599.4,0.3234]
[1727327000460,3.07722,2599.8,2599.4,0.3234]
[1727327000651,6.15447,2599.8,2599.5,0.06927159]
[1727327000861,3.07722,2599.8,2599.5,0.06927159]
[1727327001152,4.74484792,2599.8,2599.5,0.06927159]
[1727327002197,3.07722,2599.8,2599.5,0.06927159]
[1727327002564,5.56934792,2600.0,2599.5,0.06927159]
[1727327003085,8.64635792,2600.0,2599.5,0.06927159]
[1727327003400,3.07705,2599.9,2599.5,0.06927159]
[1727327004391,3.07718,2599.8,2599.5,0.06927159]
[1727327007506,4.74501792,2599.6,2599.5,0.06927159]
[1727327007675,4.74501792,2599.6,2599.2,0.3234]
[1727327007861,4.74501792,2599.6,2599.5,0.0680753]
[1727327008068,4.74501792,2599.6,2599.2,0.3234]
[1727327008265,4.74501792,2599.6,2599.3,0.0680753]
[1727327009908,2.53134171,2599.6,2599.3,0.0680753]
[1727327010113,4.74525792,2599.4,2598.9,0.3234]
[1727327010340,0.09617827,2599.5,2598.9,0.3234]
[1727327010341,4.74555792,2599.2,2598.9,0.3234]
[1727327010978,3.83662,2599.3,2598.9,0.3234]
[1727327011504,3.07782,2599.3,2598.9,0.3234]
[1727327012564,3.07788,2599.2,2598.9,0.3234]
[1727327014011,3.07782,2599.3,2598.9,0.3234]
[1727327014215,3.07791,2599.2,2598.9,0.3234]
[1727327015011,3.07782,2599.3,2598.9,0.3234]
[1727327015209,6.15568,2599.3,2598.9,0.3234]
[1727327015419,3.07782,2599.3,2598.9,0.3234]
[1727327015620,6.15567,2599.3,2598.9,0.3234]
[1727327015791,3.07787,2599.2,2598.9,0.3234]
[1727327016189,3.07782,2599.3,2598.9,0.3234]
[1727327016583,3.07788,2599.2,2598.9,0.3234]
[1727327017498,3.07782,2599.3,2598.9,0.3234]
[1727327017721,6.15565,2599.3,2598.9,0.3234]
[1727327018221,3.07787,2599.2,2598.9,0.3234]
[1727327018991,3.07805,2599.1,2598.9,0.3234]
[1727327019202,3.07805,2599.1,2598.7,0.3234]
[1727327019632,6.15611,2599.1,2598.7,0.3234]
[1727327019839,3.07805,2599.1,2598.7,0.3234]
[1727327021344,3.07805,2599.1,2598.8,0.06666341]
[1727327021543,3.07805,2599.1,2598.7,0.3234]
[1727327021701,3.07805,2599.1,2598.9,0.06666341]
[1727327021896,3.07805,2599.1,2598.7,0.3234]
[1727327022140,3.07805,2599.1,2599.0,0.06666341]
[1727327022433,3.07805,2599.1,2598.7,0.3234]
[1727327022638,3.07805,2599.1,2599.0,0.06666341]
[1727327022868,3.07805,2599.1,2598.7,0.3234]
[1727327023002,3.07805,2599.1,2599.0,0.06666341]
[1727327023204,3.07805,2599.1,2598.7,0.3234]
[1727327023427,3.07805,2599.1,2599.0,0.06666341]
[1727327023617,3.07805,2599.1,2598.7,0.3234]
[1727327023802,3.07805,2599.1,2599.0,0.06666341]
[1727327024004,1.66762792,2599.2,2598.7,0.3234]
[1727327024244,1.66762792,2599.2,2599.0,0.06666341]
[1727327024538,1.66762792,2599.2,2599.1,0.06666341]
[1727327024747,4.74553792,2599.2,2598.7,3.40184]
[1727327025040,4.74553792,2599.2,2599.1,0.06675535]
[1727327025249,4.74553792,2599.2,2598.7,3.40184]
[1727327025448,4.74553792,2599.2,2599.1,0.06675535]
[1727327025646,4.74553792,2599.2,2598.7,3.40184]
[1727327025818,4.74553792,2599.2,2599.1,0.06673027]
[1727327026147,3.07791,2599.2,2599.1,0.06673027]
[1727327026346,3.07791,2599.2,2598.7,3.40184]
[1727327026657,3.07782,2599.3,2599.1,0.06673027]
[1727327026963,3.07782,2599.3,2598.8,3.14493355]
[1727327027117,3.07782,2599.3,2598.8,3.07822]
[1727327027453,3.07782,2599.3,2598.9,0.06671355]
[1727327028030,6.15565,2599.3,2598.9,0.06671355]
[1727327028232,3.07782,2599.3,2598.9,0.06671355]
[1727327028540,6.15565,2599.3,2598.9,0.06671355]
[1727327028845,6.15564,2599.3,2598.9,0.06671355]
[1727327029515,3.07782,2599.3,2598.9,0.06671355]
[1727327030755,3.07782,2599.3,2598.9,3.14493355]
[1727327030931,3.07782,2599.3,2599.0,0.3234]
[1727327031129,3.0778,2599.3,2599.0,0.39005505]
[1727327032351,3.07776,2599.3,2599.0,0.39005505]
[1727327032921,3.07769,2599.4,2599.0,0.39005505]
[1727327033122,6.15541,2599.4,2599.0,0.39005505]
[1727327033335,3.07769,2599.4,2599.0,0.39005505]
[1727327033561,6.15539,2599.4,2599.0,0.39005505]
[1727327033757,3.07769,2599.4,2599.0,0.39005505]
[1727327033958,6.1554,2599.4,2599.0,0.39005505]
[1727327034164,3.07769,2599.4,2599.0,0.39005505]
[1727327034570,6.15539,2599.4,2599.0,0.39005505]
[1727327034868,3.07769,2599.4,2599.0,0.39005505]
[1727327035030,6.15539,2599.4,2599.0,0.39005505]
[1727327035231,3.07769,2599.4,2599.0,0.39005505]
[1727327035425,6.15543,2599.4,2599.0,0.39005505]
[1727327036365,3.07769,2599.4,2599.0,0.39005505]
[1727327036575,3.07775,2599.3,2599.0,0.39005505]
[1727327042881,3.07766,2599.4,2599.0,0.39005505]
[1727327045497,3.07776,2599.3,2599.0,0.39005505]
[1727327046495,3.07768,2599.4,2599.0,0.39005505]
[1727327048778,3.07777,2599.3,2599.0,0.39005505]
[1727327050289,5.55446792,2599.5,2599.0,0.39005505]
[1727327050587,3.07766,2599.4,2599.0,0.39005505]
[1727327052390,3.07776,2599.3,2599.0,0.39005505]
[1727327053051,4.74538792,2599.3,2599.0,0.39005505]
[1727327055888,1.66762792,2599.3,2599.0,0.39005505]
[1727327057013,3.07763,2599.4,2599.0,0.39005505]
[1727327059622,6.26841789,2599.8,2599.2,0.3234]
[1727327059829,3.07728,2599.7,2599.3,3.07764]
[1727327059983,3.07721,2599.8,2599.3,3.07764]
[1727327060183,3.07721,2599.8,2599.4,0.06610936]
[1727327060790,6.15447,2599.8,2599.4,0.06610936]
[1727327061487,3.07721,2599.8,2599.4,0.06610936]
[1727327062711,6.15444,2599.8,2599.4,0.06610936]
[1727327062912,4.74490792,2599.7,2599.4,0.06610936]
[1727327063291,4.74490792,2599.7,2599.2,3.40124]
[1727327063487,4.74490792,2599.7,2599.5,0.06585867]
[1727327063787,1.66762792,2599.7,2599.6,0.06585867]
[1727327064019,4.74491792,2599.7,2599.6,0.06585867]
[1727327065914,3.07721,2599.8,2599.6,0.06585867]
[1727327066618,3.07704,2599.9,2599.6,0.06585867]
[1727327066940,4.74462792,2600.0,2599.6,0.06585867]
[1727327067107,7.82164792,2600.0,2599.6,0.06585867]
[1727327067313,3.07715,2599.9,2599.6,0.06585867]
[1727327068995,4.74462792,2600.0,2599.6,0.06585867]
[1727327069222,7.82162792,2600.0,2599.6,0.06585867]
[1727327069407,3.07704,2599.9,2599.6,0.06585867]
[1727327074449,7.82163792,2600.0,2599.6,0.06585867]
[1727327074972,3.07706,2599.9,2599.6,0.06585867]
[1727327076459,4.74461792,2600.0,2599.6,0.06585867]
[1727327076659,3.07716,2599.8,2599.6,0.06585867]
[1727327076962,3.07707,2599.9,2599.6,0.06585867]
[1727327080829,4.74461792,2600.0,2599.6,0.06585867]
[1727327081036,3.07706,2599.9,2599.6,0.06585867]
[1727327083571,0.8218,2600.2,2599.7,0.3234]
[1727327083572,6.15354,2600.2,2599.7,0.3234]
[1727327083774,3.07653,2600.4,2599.9,0.3234]
[1727327083955,6.15307,2600.4,2599.9,0.3234]
[1727327084135,6.15307,2600.4,2600.0,0.06500651]
[1727327084649,3.0766,2600.3,2600.0,0.06500651]
[1727327085566,3.07653,2600.4,2600.0,0.06500651]
[1727327085567,3.07653,2600.4,2600.1,0.3234]
[1727327085767,4.74395792,2600.5,2600.1,0.3234]
[1727327086172,4.74395792,2600.5,2600.2,0.06500651]
[1727327086490,3.07626,2600.6,2600.2,0.06500651]
[1727327086783,3.07635,2600.5,2600.2,0.06500651]
[1727327086940,6.15255,2600.6,2600.3,0.3234]
[1727327087143,3.07626,2600.6,2600.3,0.3234]
[1727327087459,3.07633,2600.5,2600.4,0.06500651]
[1727327088963,3.07623,2600.6,2600.4,0.06500651]
[1727327092051,4.74385792,2600.6,2600.1,0.3234]
[1727327092250,4.74385792,2600.6,2600.2,0.06462235]
[1727327093977,3.07645,2600.4,2600.2,0.06462235]
[1727327094167,4.74407792,2600.4,2600.2,0.06462235]
[1727327096394,3.90656,2600.3,2600.2,0.06462235]
[1727327096764,3.07628,2600.6,2600.2,0.3234]
[1727327097099,3.07628,2600.6,2600.2,0.3875881]
[1727327097294,4.74368792,2600.8,2600.3,3.07649]
[1727327097655,3.07606,2600.8,2600.4,0.38761315]
[1727327098060,1.66762792,2601.0,2600.4,0.3234]
[1727327098320,3.07555,2601.2,2599.8,3.0]
[1727327098321,3.07555,2601.2,2600.8,0.3234]
[1727327098660,3.07555,2601.2,2600.9,0.06413801]
[1727327100169,3.07562,2601.1,2600.9,0.06413801]
[1727327100364,4.74317792,2601.2,2600.9,0.06413801]
[1727327101104,3.07504,2601.6,2600.9,0.06413801]
[1727327101105,0.7959,2601.6,2601.0,0.3234]
[1727327101308,3.07544,2601.3,2601.0,0.3234]
[1727327101505,3.07544,2601.3,2601.1,0.06378739]
[1727327102279,3.07528,2601.4,2601.1,0.06378739]
[1727327102485,5.30046243,2601.5,2601.1,0.06378739]
[1727327102681,7.81854792,2601.3,2601.1,0.06378739]
[1727327102881,4.74307792,2601.3,2600.8,0.3234]
[1727327103087,4.74307792,2601.3,2600.9,0.06134403]
[1727327105485,1.66762792,2601.1,2600.9,0.06134403]
[1727327106009,0.8317,2601.2,2600.7,3.07609]
[1727327106010,3.90721,2601.2,2600.7,3.07609]
[1727327106188,3.90721,2601.2,2601.0,0.06056779]
[1727327106388,3.90721,2601.2,2601.1,0.06056779]
[1727327106611,0.8317,2601.2,2600.7,3.076]
[1727327106814,4.83919813,2601.3,2600.8,3.07594]
[1727327107017,4.83919813,2601.3,2600.8,3.13650779]
[1727327107521,7.91468813,2601.3,2600.8,3.13650779]
[1727327107686,5.53884792,2601.4,2600.8,3.13650779]
[1727327107885,5.53884792,2601.4,2600.8,6.21241779]
[1727327108130,5.53884792,2601.4,2600.8,3.13647779]
[1727327109096,5.6349629,2601.4,2600.8,3.13647779]
[1727327109316,3.07545,2601.3,2600.8,3.13647779]
[1727327111108,6.15091,2601.3,2600.8,3.13647779]
[1727327111445,3.07545,2601.3,2600.8,3.13647779]
[1727327115509,3.07545,2601.3,2600.8,3.13645779]
[1727327116451,3.99225727,2601.3,2600.8,3.13645779]
[1727327116851,5.63475285,2601.2,2600.8,0.06056779]
[1727327117055,3.07598,2600.8,2600.3,3.07656]
[1727327117213,1.66762792,2600.7,2600.4,0.05680651]
[1727327117549,1.66762792,2600.7,2600.2,6.47666]
[1727327117550,0.8049,2600.6,2600.3,3.07655]
[1727327117845,0.8049,2600.6,2600.2,3.40002]
[1727327118052,0.8049,2600.6,2600.3,0.05680651]
[1727327118248,0.8049,2600.6,2600.2,3.40002]
[1727327118408,0.8049,2600.6,2600.3,0.05680651]
[1727327118608,0.8049,2600.6,2600.2,3.40002]
[1727327118823,0.8049,2600.6,2600.3,0.05680651]
[1727327119051,0.8049,2600.6,2600.3,3.07655]
[1727327119253,0.8229,2600.8,2600.4,3.13324651]
[1727327119406,3.89889,2600.8,2600.4,0.05680651]
[1727327119610,3.89889,2600.8,2600.3,3.07654]
[1727327119820,3.89889,2600.8,2600.4,0.05680651]
[1727327120042,3.89889,2600.8,2600.4,3.07644]
[1727327120244,0.8229,2600.8,2600.5,0.05680651]
[1727327121051,0.8229,2600.8,2600.2,3.4]
[1727327121052,1.66762792,2600.7,2600.2,3.4]
[1727327121213,1.66762792,2600.7,2600.6,0.05680651]
[1727327121413,1.66762792,2600.7,2600.2,3.4]
[1727327121626,1.66762792,2600.7,2600.6,0.05680651]
[1727327121834,2.24918999,2600.7,2600.2,3.4]
[1727327122041,1.66762792,2600.7,2600.2,3.4]
[1727327122248,1.66762792,2600.7,2600.3,3.13336651]
[1727327122760,1.66762792,2600.7,2600.3,0.05680651]
[1727327122966,1.66762792,2600.7,2600.3,3.13335651]
[1727327123126,1.66762792,2600.7,2600.3,3.07655]
[1727327123325,1.66762792,2600.7,2600.4,0.05680651]
[1727327123526,3.89894,2600.8,2600.4,0.05680651]
[1727327124965,4.76317679,2600.8,2600.4,0.05680651]
[1727327125150,4.76317679,2600.8,2600.2,6.47659]